bitfinex/quotes_ETHUSD_20220123
["timestamp","ask_amount","ask_price","bid_price","bid_amount"]
[1642970894503,5.21357498,2423.0,2422.1,1.15221457]
[1642970894902,5.21357498,2422.9,2422.1,1.15221457]
[1642970895104,2.3600338,2422.8,2421.8,1.0]
[1642970895306,5.21357498,2422.8,2421.8,0.6]
[1642970895508,5.21357498,2422.8,2421.8,0.3]
[1642970895743,5.21357498,2422.8,2421.8,1.3]
[1642970895945,5.21357498,2422.9,2421.8,1.3]
[1642970896143,5.21357498,2422.8,2422.0,1.13473429]
[1642970896545,5.21357498,2422.9,2422.0,1.43473429]
[1642970896745,5.21357498,2422.8,2422.0,1.43473429]
[1642970896945,5.21357498,2422.9,2422.0,1.43473429]
[1642970897747,5.21357498,2422.8,2422.0,1.43473429]
[1642970898046,5.21357498,2422.9,2422.0,0.3]
[1642970898249,0.04120496,2421.9,2421.8,1.0]
[1642970898448,0.04120496,2421.9,2421.7,2.07821409]
[1642970898651,0.04120496,2421.9,2421.5,1.0]
[1642970898849,0.04120496,2421.9,2421.6,0.3]
[1642970899050,0.04120496,2421.9,2421.5,0.3]
[1642970899248,0.04120496,2421.9,2421.7,1.2816334]
[1642970899506,0.02725369,2421.9,2421.7,1.2816334]
[1642970900700,0.02725369,2421.9,2421.4,1.73819997]
[1642970901102,0.02725369,2421.9,2421.5,2.34301303]
[1642970901700,0.02725369,2421.9,2421.5,3.34301303]
[1642970901904,4.18594359,2422.3,2421.9,7.25]
[1642970902103,3.6341,2422.9,2422.0,1.0]
[1642970902104,4.18594359,2422.5,2422.0,1.0]
[1642970902407,5.29041498,2422.9,2422.0,1.20459792]
[1642970902602,5.21357498,2423.0,2422.1,0.3]
[1642970902802,5.23075176,2423.0,2422.1,0.3]
[1642970903105,5.23075176,2423.1,2422.9,1.43359682]
[1642970903355,8.7943696,2423.8,2423.0,0.3]
[1642970903356,5.23075176,2423.4,2423.0,0.3]
[1642970903550,5.23075176,2423.5,2422.6,2.27744]
[1642970903751,5.22997533,2423.4,2422.7,1.3]
[1642970903949,5.22997533,2423.4,2422.7,0.3]
[1642970904151,5.22997533,2423.4,2422.5,1.33267]
[1642970904353,5.22997533,2423.4,2422.5,2.26130763]
[1642970904649,5.22997533,2423.3,2422.5,2.26130763]
[1642970904851,5.22997533,2423.3,2422.9,1.10011412]
[1642970905057,5.22997533,2423.2,2422.5,2.33267]
[1642970905254,8.79318556,2424.0,2422.1,0.17797134]
[1642970905255,5.22997533,2423.1,2422.1,0.17797134]
[1642970905452,11.41839087,2424.1,2421.9,2.23059]
[1642970905453,5.22997533,2423.0,2421.9,2.23059]
[1642970905652,5.22997533,2423.0,2422.0,0.3]
[1642970905851,7.04996044,2423.3,2421.9,2.06559]
[1642970905852,5.22997533,2422.9,2421.9,2.06559]
[1642970906252,5.22997533,2422.8,2421.8,2.06574]
[1642970906456,5.22997533,2422.7,2421.7,0.1651]
[1642970906652,7.04976044,2423.1,2421.4,1.17133997]
[1642970906653,5.22997533,2422.6,2421.4,1.17133997]
[1642970906855,0.07627,2422.5,2421.4,1.17133997]
[1642970907096,5.22997533,2422.4,2421.4,0.13819997]
[1642970907294,5.30603533,2422.3,2421.4,0.13819997]
[1642970907498,5.22997533,2422.3,2421.5,2.34319589]
[1642970908095,5.30581533,2422.5,2421.5,3.34319589]
[1642970908701,5.30581533,2422.5,2421.6,2.34319589]
[1642970909701,4.19008316,2422.1,2421.6,2.34319589]
[1642970910311,4.02617885,2422.1,2421.6,2.34319589]
[1642970910505,4.32617885,2422.1,2421.6,2.34319589]
[1642970910756,6.30704533,2422.0,2421.6,2.34319589]
[1642970910955,5.22997533,2421.9,2421.6,2.34319589]
[1642970911155,1.07767,2421.8,2420.6,2.0559803]
[1642970911354,2.45091016,2421.8,2420.5,1.0335]
[1642970911554,1.37767,2421.8,2420.4,3.23678087]
[1642970912155,6.60764533,2421.8,2420.4,3.23678087]
[1642970912363,1.37767,2421.8,2420.5,3.34394631]
[1642970912559,0.07767,2421.8,2420.5,3.64394631]
[1642970912965,0.07767,2421.8,2420.6,0.17677]
[1642970913166,5.21422623,2422.2,2420.9,2.06662]
[1642970913167,10.09623534,2422.2,2420.9,2.06662]
[1642970913361,1.134,2422.2,2420.9,5.16679733]
[1642970913562,0.05001159,2421.8,2421.2,0.96395264]
[1642970913762,0.05001159,2421.8,2421.6,1.35507356]
[1642970914162,0.05001159,2421.8,2421.6,1.95507356]
[1642970914593,0.05001159,2421.8,2421.6,1.65507356]
[1642970914795,0.05001159,2421.8,2421.3,1.03322]
[1642970914995,0.05001159,2421.8,2421.3,0.3]
[1642970915598,0.05001159,2421.8,2421.1,1.6]
[1642970915993,0.05001159,2421.8,2421.3,1.54640665]
[1642970916394,0.05001159,2421.8,2421.3,1.84640665]
[1642970916596,0.05001159,2421.8,2421.3,2.84640665]
[1642970917699,0.05001159,2421.8,2421.3,1.84640665]
[1642970917899,0.05001159,2421.8,2421.4,1.3]
[1642970918347,0.05001159,2421.8,2421.0,4.16551355]
[1642970918348,0.05001159,2421.8,2421.2,1.0]
[1642970918574,0.05001159,2421.8,2420.9,2.07958125]
[1642970919748,4.22963425,2421.8,2420.9,2.07958125]
[1642970919951,4.22963425,2421.8,2421.0,2.34352807]
[1642970920152,0.05001159,2421.8,2421.0,3.34352807]
[1642970920349,4.22963425,2421.8,2421.0,3.34352807]
[1642970920949,0.05001159,2421.8,2421.0,3.34352807]
[1642970921352,0.05001159,2421.8,2421.0,1.0]
[1642970921754,0.05001159,2421.8,2421.1,1.03328]
[1642970922007,0.05001159,2421.8,2421.1,1.81005]
[1642970922193,0.05001159,2421.8,2421.1,2.81005]
[1642970922594,0.05001159,2421.8,2421.2,2.34324677]
[1642970922800,0.05001159,2421.8,2421.3,1.40773347]
[1642970922997,0.05001159,2421.8,2421.3,1.70773347]
[1642970923204,0.05001159,2421.8,2421.3,2.70773347]
[1642970924001,0.05001159,2421.8,2421.3,1.70773347]
[1642970924202,0.05001159,2421.8,2421.3,1.40773347]
[1642970924801,0.05001159,2421.8,2421.2,1.0]
[1642970925002,0.05001159,2421.8,2421.1,1.0]
[1642970925201,0.05001159,2421.8,2421.3,2.34342232]
[1642970926445,0.05001159,2421.8,2421.1,1.0]
[1642970926646,0.05001159,2421.8,2421.0,1.3]
[1642970926846,0.04722119,2421.8,2421.0,1.3]
[1642970927746,0.04722119,2421.8,2421.1,2.34351118]
[1642970928148,0.04722119,2421.8,2421.1,3.34351118]
[1642970928556,4.17962266,2421.9,2421.1,4.73821311]
[1642970928752,4.17962266,2421.9,2421.3,1.03317]
[1642970928955,4.17962266,2421.9,2421.3,0.98317]
[1642970929254,4.17962266,2422.1,2421.5,1.36187164]
[1642970929501,5.3681753,2422.4,2421.5,1.36187164]
[1642970929502,4.17962266,2422.2,2421.5,1.36187164]
[1642970929696,4.17962266,2422.1,2421.5,1.36187164]
[1642970929995,4.17962266,2422.1,2421.5,1.96187164]
[1642970930195,4.17962266,2422.2,2421.5,1.96187164]
[1642970930795,0.04722119,2421.9,2421.5,1.96187164]
[1642970930999,4.17962266,2422.2,2421.6,1.20988]
[1642970931204,9.38620044,2422.9,2421.7,1.03303]
[1642970931205,4.17962266,2422.3,2421.7,1.03303]
[1642970931399,4.17962266,2422.4,2421.8,0.17677]
[1642970931603,4.17962266,2422.6,2421.9,0.1651]
[1642970931799,4.17962266,2422.6,2421.9,2.35001241]
[1642970932001,4.17962266,2422.6,2422.1,1.37836729]
[1642970932002,0.04722119,2422.3,2422.1,1.37836729]
[1642970932201,0.04722119,2422.3,2422.1,2.29326729]
[1642970932400,0.04722119,2422.3,2422.1,2.59326729]
[1642970932607,0.04722119,2422.3,2422.2,1.0]
[1642970932909,4.17684385,2422.5,2422.2,1.3]
[1642970933351,5.22997533,2422.7,2422.1,2.29326729]
[1642970933553,5.22997533,2422.7,2421.8,1.0]
[1642970933763,0.91966429,2422.0,2421.8,1.0]
[1642970933956,0.57306763,2422.0,2421.7,0.1651]
[1642970934552,0.57306763,2422.0,2421.7,0.3]
[1642970934755,0.57306763,2422.0,2421.3,0.1651]
[1642970934957,0.57306763,2422.0,2421.0,2.06637]
[1642970935355,0.57306763,2422.0,2421.1,2.34342222]
[1642970935555,0.64951763,2422.0,2421.1,2.34342222]
[1642970935861,10.9203615,2423.8,2421.1,2.34342222]
[1642970935862,5.3681753,2422.8,2421.6,7.65]
[1642970936061,5.3681753,2422.8,2421.9,0.01262577]
[1642970936062,5.22997533,2422.8,2421.9,0.01262577]
[1642970936261,5.22997533,2422.9,2422.0,0.83687]
[1642970936655,5.22997533,2422.9,2422.1,0.3]
[1642970936854,5.22997533,2422.9,2422.2,1.03282]
[1642970937099,5.22997533,2423.1,2422.3,0.6]
[1642970937300,5.22997533,2423.1,2422.3,0.8473]
[1642970937699,5.22997533,2423.1,2422.3,1.8473]
[1642970937901,5.22997533,2423.1,2422.3,0.8473]
[1642970938112,5.22997533,2423.1,2422.3,1.8473]
[1642970938303,5.22997533,2423.0,2422.3,1.8473]
[1642970938502,0.33445533,2423.0,2422.3,1.8473]
[1642970940108,5.56443066,2423.0,2422.3,1.8473]
[1642970940311,0.33445533,2423.0,2422.4,1.37042575]
[1642970940746,0.33445533,2423.0,2422.4,1.54719575]
[1642970940948,0.32181756,2423.0,2422.4,1.71229575]
[1642970941146,0.32181756,2423.0,2422.4,2.71229575]
[1642970941347,0.32181756,2423.0,2422.4,2.53552575]
[1642970941552,0.32181756,2423.0,2422.4,1.53552575]
[1642970941751,0.32181756,2423.0,2422.5,1.0]
[1642970941949,0.32181756,2423.0,2422.4,1.37042575]
[1642970942151,0.32181756,2423.0,2422.4,2.37042575]
[1642970942553,0.32181756,2423.0,2422.4,1.37042575]
[1642970943354,0.32181756,2423.0,2422.7,0.95957271]
[1642970943555,0.32345662,2423.0,2422.7,1.6176]
[1642970944160,0.32345662,2423.2,2422.8,1.36958093]
[1642970944355,5.22997533,2423.3,2422.8,1.36958093]
[1642970944601,5.22997533,2423.3,2422.8,2.36958093]
[1642970944801,5.22997533,2423.4,2422.8,1.36958093]
[1642970945008,5.22997533,2423.4,2422.8,2.36958093]
[1642970945605,5.22997533,2423.5,2422.8,1.36958093]
[1642970945803,5.22997533,2423.5,2422.8,2.36958093]
[1642970946006,5.22997533,2423.4,2422.8,2.36958093]
[1642970946206,5.22997533,2423.5,2422.8,1.0]
[1642970946410,5.22997533,2423.4,2422.6,1.165]
[1642970946719,5.22997533,2423.1,2422.2,1.465]
[1642970946911,0.0761,2423.0,2422.2,1.6]
[1642970947110,5.22997533,2423.1,2422.2,1.6]
[1642970947313,5.22997533,2423.2,2422.5,1.50853328]
[1642970947509,5.22997533,2423.2,2422.5,1.80853328]
[1642970947810,5.22997533,2423.3,2422.5,2.10853328]
[1642970948014,0.07566,2423.2,2422.5,2.10853328]
[1642970948251,0.07566,2423.2,2422.5,0.3]
[1642970948450,0.07566,2423.2,2422.1,4.44595997]
[1642970948451,5.30563533,2423.2,2422.2,1.0]
[1642970948652,5.22997533,2423.1,2422.2,1.3]
[1642970948853,5.22997533,2423.2,2422.2,1.6]
[1642970949054,0.07538,2423.1,2422.2,1.6]
[1642970949259,0.07538,2423.1,2422.5,1.22506613]
[1642970949455,7.11150041,2423.6,2422.5,1.22506613]
[1642970949456,5.22997533,2423.3,2422.5,1.22506613]
[1642970949655,0.07509,2423.2,2422.5,1.22506613]
[1642970949856,0.07509,2423.2,2422.5,1.82506613]
[1642970950257,5.22997533,2423.4,2422.5,1.82506613]
[1642970950459,0.07695,2423.3,2422.5,1.82506613]
[1642970950657,0.07695,2423.3,2422.1,4.44595997]
[1642970950859,5.22997533,2423.1,2422.0,0.165]
[1642970951059,0.01204213,2423.2,2422.0,0.165]
[1642970951060,5.22997533,2422.8,2422.0,0.165]
[1642970951258,6.00577533,2422.8,2422.0,0.165]
[1642970951456,0.7758,2422.8,2422.0,1.03497873]
[1642970951662,0.7758,2422.8,2422.1,1.1358352]
[1642970952615,5.22997533,2422.9,2422.1,1.1358352]
[1642970952801,5.60640533,2422.9,2421.7,1.03303]
[1642970953004,5.60640533,2422.9,2421.8,0.3]
[1642970953402,5.22997533,2422.8,2421.8,0.3]
[1642970953602,0.075,2422.7,2421.8,0.3]
[1642970953805,0.07356,2422.8,2421.9,1.38349474]
[1642970954211,5.22997533,2423.0,2422.3,1.50048665]
[1642970954411,7.8214,2423.3,2422.3,1.50048665]
[1642970954412,5.22997533,2423.2,2422.3,1.80048665]
[1642970954604,5.22997533,2423.2,2422.3,2.10048665]
[1642970955007,6.37937533,2423.3,2422.3,2.10048665]
[1642970955208,5.22997533,2423.3,2422.3,2.10048665]
[1642970955604,5.22997533,2423.3,2422.3,2.27725665]
[1642970955845,5.22997533,2423.3,2422.7,1.27582628]
[1642970956044,5.22997533,2423.3,2422.7,1.57582628]
[1642970956244,5.22997533,2423.4,2422.9,0.92375471]
[1642970956648,5.22997533,2423.5,2422.9,0.92375471]
[1642970957060,5.22997533,2423.5,2423.1,1.1726003]
[1642970957251,5.22997533,2423.5,2422.8,1.0]
[1642970957451,5.22997533,2423.5,2422.8,1.6]
[1642970957651,5.22997533,2423.5,2422.8,0.6]
[1642970957849,5.22997533,2423.5,2422.8,0.3]
[1642970958148,5.22997533,2423.4,2422.6,0.3]
[1642970958350,5.22997533,2423.4,2422.8,1.12216764]
[1642970958550,5.22997533,2423.4,2422.8,1.72216764]
[1642970959609,5.22997533,2423.4,2422.8,1.12216764]
[1642970960106,5.22997533,2423.4,2422.8,1.72216764]
[1642970960912,5.3681753,2423.6,2422.8,1.72216764]
[1642970961506,5.3681753,2423.6,2422.8,1.67216764]
[1642970961907,5.3681753,2423.6,2422.8,1.12216764]
[1642970963112,0.13819997,2423.6,2422.8,1.12216764]
[1642970963551,5.3681753,2423.6,2422.8,1.12216764]
[1642970963851,0.13819997,2423.6,2422.8,1.42216764]
[1642970964054,0.13819997,2423.6,2422.8,1.72216764]
[1642970964449,0.13819997,2423.6,2422.8,0.72216764]
[1642970964657,5.3681753,2423.6,2422.8,1.02216764]
[1642970964852,5.3681753,2423.6,2422.8,0.72216764]
[1642970965053,5.3681753,2423.6,2422.8,1.02216764]
[1642970966153,5.3681753,2423.6,2422.8,1.32216764]
[1642970967211,5.22997533,2423.7,2423.3,0.38862007]
[1642970967408,3.96037533,2423.7,2423.4,1.07496997]
[1642970967606,0.04,2424.3,2423.9,0.86440464]
[1642970967806,8.75662556,2424.4,2423.9,0.86440464]
[1642970967807,0.04,2424.4,2424.0,2.91073211]
[1642970968007,0.04,2424.4,2424.0,0.895]
[1642970968205,0.04,2424.4,2424.1,2.39727496]
[1642970968407,0.04,2424.4,2424.2,0.595]
[1642970968706,0.0001,2424.4,2424.3,4.63117026]
[1642970968911,0.04,2424.7,2424.4,5.45]
[1642970969107,0.04,2424.7,2424.5,3.97312676]
[1642970969306,0.04,2424.7,2424.5,1.895]
[1642970969510,0.04,2425.0,2424.7,0.96965701]
[1642970969712,0.04,2425.0,2424.8,1.81971998]
[1642970969907,0.04,2425.0,2424.8,2.11971998]
[1642970970109,0.04,2425.0,2424.8,3.01971998]
[1642970970769,0.04,2425.0,2424.9,6.12677]
[1642970970959,0.04,2425.0,2424.9,7.68057]
[1642970971160,0.04,2425.0,2424.9,3.03057]
[1642970971561,0.04,2425.0,2424.9,3.31017]
[1642970973263,0.04,2425.0,2424.9,3.61017]
[1642970974067,0.04,2425.2,2425.0,5.6]
[1642970974266,0.04,2425.2,2425.1,0.595]
[1642970974502,0.0001,2425.3,2425.2,5.0]
[1642970974707,0.04,2425.5,2425.3,4.2]
[1642970974912,0.04,2425.5,2425.4,0.595]
[1642970974913,0.0381598,2425.5,2425.4,0.595]
[1642970975105,5.78327754,2425.8,2425.4,1.5855]
[1642970975309,5.78327754,2425.8,2425.5,0.3]
[1642970975507,5.78327754,2425.8,2425.6,0.595]
[1642970975508,0.58123448,2425.8,2425.6,0.595]
[1642970975711,5.78327754,2425.8,2425.3,1.595]
[1642970975911,5.20204306,2425.5,2424.4,2.06345]
[1642970976109,5.20204306,2425.5,2424.3,0.17677]
[1642970976308,5.20204306,2425.6,2424.4,0.7598]
[1642970976607,0.07645,2425.5,2424.5,0.17677]
[1642970976907,0.07645,2425.5,2424.9,1.52236801]
[1642970977312,5.27849306,2425.7,2424.9,1.82236801]
[1642970977514,5.27849306,2425.7,2424.9,2.12236801]
[1642970977706,5.44980084,2425.8,2424.9,2.12236801]
[1642970978560,5.44980084,2425.8,2424.9,1.52236801]
[1642970978561,2.24343834,2425.7,2424.9,1.52236801]
[1642970978763,2.24343834,2425.7,2424.7,0.9]
[1642970978764,0.68708194,2424.8,2424.7,0.9]
[1642970978960,0.68708194,2424.8,2424.6,0.895]
[1642970979164,9.54104306,2425.7,2424.7,0.3]
[1642970979368,0.23535028,2425.8,2424.8,0.595]
[1642970979666,0.23535028,2425.8,2424.9,24.44677]
[1642970979865,0.23535028,2425.8,2425.0,0.50776101]
[1642970980265,0.23535028,2425.8,2425.1,2.64414953]
[1642970980464,0.23535028,2425.8,2425.1,2.94414953]
[1642970980665,0.23535028,2425.8,2425.2,1.495]
[1642970981472,0.23535028,2425.8,2424.7,0.88541627]
[1642970981473,0.23535028,2425.8,2425.0,1.0]
[1642970981869,0.23535028,2425.8,2424.8,1.3]
[1642970982099,0.23535028,2425.8,2424.8,1.6]
[1642970983201,0.23535028,2425.8,2424.5,0.00132463]
[1642970983405,0.01245264,2425.4,2424.5,0.00132463]
[1642970984204,0.01245264,2425.4,2424.5,1.22044817]
[1642970985003,0.01245264,2425.4,2424.5,1.22044815]
[1642970985604,0.01245264,2425.4,2424.5,0.00132461]
[1642970985859,5.1974587,2425.4,2424.5,0.00132461]
[1642970986061,0.01254527,2424.7,2424.5,2.461e-05]
[1642970986360,0.01254527,2424.7,2423.1,0.17677]
[1642970986361,0.00077539,2424.3,2423.1,0.17677]
[1642970986559,0.00077539,2424.3,2423.4,0.00132461]
[1642970986560,0.00979074,2424.2,2423.4,0.00132461]
[1642970986963,0.00077539,2424.3,2423.4,0.00132461]
[1642970987160,6.80133887,2424.5,2423.5,1.3994571]
[1642970987161,6.75211426,2424.5,2423.5,1.3994571]
[1642970987360,2.97161426,2424.5,2423.5,1.40078171]
[1642970987565,10.56584141,2425.3,2423.5,1.57755171]
[1642970987566,5.18500606,2425.1,2423.5,1.57755171]
[1642970987769,0.86030901,2424.9,2423.8,1.03218]
[1642970987967,0.86030901,2424.9,2423.9,1.03216]
[1642970988163,0.86030901,2424.9,2423.9,1.33348461]
[1642970988363,13.97526928,2425.2,2424.0,1.21622163]
[1642970988562,13.97526928,2425.2,2424.0,1.51754624]
[1642970988563,10.24556928,2425.2,2424.0,1.51754624]
[1642970988962,10.84556928,2425.2,2424.0,2.51754624]
[1642970989162,7.68426928,2425.2,2424.1,1.0]
[1642970989362,7.68426928,2425.2,2424.1,1.00132461]
[1642970989608,7.68426928,2425.2,2424.1,1.30132461]
[1642970989609,5.071,2425.2,2424.1,1.30132461]
[1642970989808,1.1817,2425.2,2424.1,0.30132461]
[1642970990008,1.1817,2425.2,2424.1,2.35773513]
[1642970990213,1.1817,2425.2,2424.1,1.35773513]
[1642970990516,3.9855,2425.5,2424.7,1.78483155]
[1642970990812,1.1254,2425.7,2424.7,2.89923155]
[1642970991012,0.23535028,2425.8,2424.7,2.89923155]
[1642970991212,5.42100316,2425.8,2424.8,1.0]
[1642970991610,5.42100316,2425.8,2424.7,2.12865611]
[1642970991809,5.42100316,2425.8,2424.7,1.78615611]
[1642970992010,0.18535028,2425.8,2424.7,1.78615611]
[1642970992210,7.60628412,2425.8,2424.7,1.78615611]
[1642970992411,7.60628412,2425.8,2424.7,1.18615611]
[1642970992412,5.37100316,2425.8,2424.7,1.18615611]
[1642970992611,0.36830444,2424.6,2424.2,1.6598]
[1642970992814,0.36830444,2424.6,2424.4,1.0]
[1642970993016,0.36830444,2424.6,2424.2,1.0]
[1642970993017,0.36830444,2424.6,2424.2,0.3]
[1642970993267,0.36830444,2424.6,2423.9,1.0]
[1642970993459,5.68065288,2425.4,2424.4,0.01205266]
[1642970993460,5.18565288,2425.4,2424.4,0.01205266]
[1642970993662,5.18565288,2425.4,2424.5,0.68397821]
[1642970993861,0.00270493,2425.7,2424.5,0.18897821]
[1642970994061,2.19135928,2425.8,2424.5,0.01220821]
[1642970994259,0.18535028,2425.8,2424.5,0.01220821]
[1642970994457,2.19135928,2425.8,2424.7,1.43361901]
[1642970994661,2.19135928,2425.8,2424.5,0.01220821]
[1642970994863,0.01237427,2425.7,2424.1,1.03201]
[1642970995068,5.18565288,2425.5,2423.7,0.1648]
[1642970995260,5.919409,2425.4,2423.7,0.1648]
[1642970995459,0.01289154,2425.2,2423.7,0.1648]
[1642970995668,1.29966246,2425.1,2423.7,1.39743428]
[1642970995858,1.29966246,2425.1,2423.7,1.57420428]
[1642970995859,2.4696335,2425.0,2423.7,1.57420428]
[1642970996059,3.0696335,2425.0,2423.7,0.1648]
[1642970996262,0.495,2424.9,2423.7,0.1648]
[1642970996463,0.495,2424.9,2423.0,0.13819997]
[1642970996464,0.0129081,2424.6,2423.0,0.13819997]
[1642970996661,0.5079081,2424.6,2423.0,0.13819997]
[1642970997010,3.99310829,2424.5,2423.0,0.13819997]
[1642970997212,1.53972738,2424.3,2423.0,0.13819997]
[1642970997409,2.46652719,2424.2,2423.0,0.13819997]
[1642970997610,3.7384,2424.4,2423.0,0.43819997]
[1642970997611,6.107607,2424.4,2423.0,0.43819997]
[1642970998715,6.00356634,2424.4,2423.0,0.43819997]
[1642970998913,4.99972089,2424.4,2423.2,1.03247]
[1642970999116,4.99972089,2424.4,2423.2,1.33247]
[1642970999713,4.99972089,2424.4,2423.2,0.3]
[1642970999914,4.99972089,2424.4,2423.0,0.43819997]
[1642971000114,4.99972089,2424.4,2423.0,1.43819997]
[1642971000313,4.99972089,2424.4,2423.0,0.43819997]
[1642971000513,4.99972089,2424.4,2423.0,1.43819997]
[1642971000514,5.29972089,2424.4,2423.0,1.43819997]
[1642971000964,5.29972089,2424.4,2423.0,0.43819997]
[1642971001164,1.0,2424.3,2422.8,0.01221736]
[1642971001369,1.0,2424.3,2422.5,1.34724]
[1642971001370,3.53130573,2424.2,2422.5,0.3145]
[1642971001565,1.0,2424.1,2422.5,0.3145]
[1642971001764,3.74632978,2424.0,2422.5,0.3145]
[1642971001962,4.04632978,2424.0,2422.5,0.3145]
[1642971002163,1.0,2423.9,2422.7,1.33266006]
[1642971002363,3.07983853,2423.8,2422.7,1.33266006]
[1642971002571,0.3,2423.7,2422.5,0.3145]
[1642971002766,2.78865373,2423.6,2422.5,0.3145]
[1642971002964,3.08865373,2423.6,2422.5,0.3145]
[1642971003764,3.08865373,2423.6,2422.6,1.27966699]
[1642971004163,2.78865373,2423.6,2422.6,1.27966699]
[1642971004367,2.78865373,2423.6,2422.6,1.87966699]
[1642971004612,5.20439408,2424.2,2422.8,2.06503]
[1642971004811,0.27150493,2424.3,2423.1,0.01212546]
[1642971004812,0.2688,2424.3,2423.1,0.01212546]
[1642971005009,0.2688,2424.3,2423.2,0.01715334]
[1642971005210,0.2688,2424.3,2423.1,0.01212546]
[1642971005610,0.2688,2424.3,2423.7,1.14390579]
[1642971005812,0.2688,2424.3,2423.3,1.03238]
[1642971006012,0.2688,2424.3,2423.3,2.33238]
[1642971006217,0.2688,2424.3,2423.4,0.3]
[1642971006412,0.2688,2424.3,2423.5,0.17677]
[1642971006615,1.1957,2424.4,2423.5,0.17677]
[1642971006813,1.1957,2424.4,2423.5,2.63239435]
[1642971007014,1.1957,2424.4,2423.5,2.93239435]
[1642971007212,1.1957,2424.4,2423.6,1.0]
[1642971007415,1.1957,2424.4,2423.8,1.0322]
[1642971007612,1.1957,2424.4,2424.0,1.1744883]
[1642971007815,1.1957,2424.4,2424.0,1.4744883]
[1642971008277,1.1957,2424.4,2423.9,1.0]
[1642971008278,1.1957,2424.4,2423.9,1.3]
[1642971008479,1.1957,2424.4,2423.9,0.3]
[1642971008884,1.1957,2424.4,2423.6,0.3]
[1642971009082,1.1957,2424.4,2423.8,1.44095823]
[1642971009485,1.1957,2424.4,2423.8,1.74095823]
[1642971009886,1.1957,2424.4,2423.4,2.55938]
[1642971010085,1.1957,2424.4,2423.5,1.0]
[1642971010287,1.1957,2424.4,2423.3,1.465]
[1642971010489,1.1957,2424.4,2423.3,0.165]
[1642971010688,1.7957,2424.4,2423.3,1.165]
[1642971010890,7.00009408,2424.4,2423.3,1.165]
[1642971011086,7.00009408,2424.4,2423.3,0.165]
[1642971011595,1.1957,2424.4,2423.3,0.165]
[1642971011791,1.1957,2424.4,2423.1,2.97224721]
[1642971012509,1.1957,2424.4,2423.5,1.21634718]
[1642971012708,1.1957,2424.4,2423.6,0.17677]
[1642971012907,1.1957,2424.4,2423.7,1.19799009]
[1642971013108,1.1957,2424.4,2423.8,0.3]
[1642971013708,1.1957,2424.4,2423.6,0.77677]
[1642971013908,1.1957,2424.4,2423.7,2.06423]
[1642971014112,1.1957,2424.4,2424.0,1.31802839]
[1642971014308,1.1957,2424.4,2423.8,0.3]
[1642971014512,1.1957,2424.4,2423.6,0.17677]
[1642971014715,0.3,2424.4,2423.4,1.0]
[1642971014910,5.20439408,2424.3,2422.9,1.3351]
[1642971015108,5.20439408,2424.3,2423.0,0.17677]
[1642971015309,6.45082186,2424.4,2423.1,1.15639125]
[1642971015508,6.45082186,2424.4,2422.9,0.17677]
[1642971015509,5.21712186,2424.4,2422.9,0.17677]
[1642971015758,6.43232186,2424.4,2422.9,0.17677]
[1642971015961,5.20439408,2424.2,2422.8,1.49762]
[1642971016163,5.20439408,2424.2,2422.5,1.165]
[1642971016364,5.20439408,2424.2,2422.4,0.01236434]
[1642971016365,6.20439408,2424.1,2422.4,0.01236434]
[1642971016565,1.18098577,2423.5,2422.4,0.01236434]
[1642971016770,2.32308577,2423.5,2422.2,7.56819997]
[1642971017464,7.07999309,2423.5,2422.2,7.43]
[1642971017665,7.07999309,2423.5,2421.9,0.01282313]
[1642971017863,5.69939408,2423.4,2421.6,1.03540856]
[1642971018065,5.20439408,2423.2,2421.5,7.43]
[1642971018267,5.20439408,2423.2,2421.4,0.01522712]
[1642971018268,1.50709935,2422.7,2421.4,0.01522712]
[1642971018469,0.00345656,2422.6,2421.4,0.01522712]
[1642971018664,0.00345656,2422.6,2421.4,0.01294856]
[1642971018863,3.49969935,2422.7,2421.4,0.01294856]
[1642971019067,3.49969935,2422.7,2421.5,2.34284879]
[1642971019270,1.3926,2422.7,2421.5,2.34284879]
[1642971019512,1.3926,2422.7,2421.5,9.77284879]
[1642971019712,1.3926,2422.7,2421.5,10.07284879]
[1642971019916,1.3926,2422.7,2421.5,2.64284879]
[1642971020117,1.6926,2422.7,2421.6,1.0]
[1642971020319,1.9926,2422.7,2421.6,1.0]
[1642971020518,1.7555,2422.7,2421.5,0.3]
[1642971020720,1.7555,2422.7,2421.4,0.31294856]
[1642971020920,0.6,2422.7,2421.4,0.01294856]
[1642971021121,1.14703331,2422.7,2421.4,0.31294856]
[1642971021319,1.6,2422.8,2421.4,0.31294856]
[1642971021523,3.2167,2423.2,2421.6,1.03315]
[1642971021723,3.2167,2423.2,2421.9,0.01218253]
[1642971021930,3.2167,2423.2,2421.9,0.18895253]
[1642971022124,3.2167,2423.2,2421.9,1.07032494]
[1642971022322,3.957,2423.5,2421.9,1.23542494]
[1642971022524,3.957,2423.5,2422.4,1.16016547]
[1642971022724,3.9831,2423.4,2422.4,1.16016547]
[1642971022924,3.7425,2423.6,2422.4,1.16016547]
[1642971023123,6.7534,2423.7,2422.0,2.03295]
[1642971023361,11.96807567,2423.7,2421.9,0.31218253]
[1642971023560,5.2269246,2423.4,2421.9,0.01218253]
[1642971023764,5.21467567,2423.3,2421.8,1.0]
[1642971023964,5.8269246,2423.4,2421.6,1.03315]
[1642971024165,2.1063293,2423.3,2422.0,1.52735195]
[1642971024466,2.4063293,2423.3,2422.0,1.52735195]
[1642971024861,1.3,2423.3,2422.0,1.52735195]
[1642971025063,0.3,2423.3,2422.0,1.52735195]
[1642971025264,0.61224893,2423.4,2422.0,1.52735195]
[1642971025463,0.31224893,2423.4,2422.0,1.52735195]
[1642971025663,8.412,2423.7,2422.2,0.87563354]
[1642971025664,7.917,2423.7,2422.2,0.87563354]
[1642971025871,2.309,2423.7,2422.6,1.48445167]
[1642971026070,0.55,2423.7,2422.6,1.48445167]
[1642971026366,5.35287564,2423.8,2422.6,1.48445167]
[1642971027013,5.35287564,2423.8,2422.2,1.3]
[1642971027207,0.13819997,2423.8,2422.2,0.3]
[1642971027406,5.35287564,2423.8,2422.2,1.0]
[1642971027608,0.3,2423.7,2422.2,1.0]
[1642971028011,0.3,2423.7,2422.1,1.92119724]
[1642971028415,5.51467567,2423.7,2422.1,2.92119724]